bitfinex/quotes_SOLUSD_20241205
["timestamp","ask_amount","ask_price","bid_price","bid_amount"]
[1733356801816,6.2595,229.45,229.34,23.776884]
[1733356803018,6.2595,229.45,229.33,23.776884]
[1733356803423,6.83606027,229.5,229.44,5.0]
[1733356803735,6.83606027,229.5,229.4,20.0]
[1733356803939,6.83606027,229.5,229.4,28.87989525]
[1733356804116,6.83606027,229.5,229.4,20.0]
[1733356804515,6.83606027,229.5,229.38,23.776884]
[1733356805632,1.6546,229.49,229.38,23.776884]
[1733356806235,6.83606027,229.5,229.43,1.6494]
[1733356806420,33.96476648,229.56,229.46,20.0]
[1733356806758,1.6546,229.58,229.46,7.11412856]
[1733356806925,1.6546,229.58,229.42,20.0]
[1733356807144,1.6546,229.58,229.43,23.776884]
[1733356807423,1.6546,229.58,229.46,20.0]
[1733356808342,1.6546,229.58,229.47,20.0]
[1733356809941,6.6047,229.59,229.47,20.0]
[1733356810244,70.01520271,229.63,229.51,20.0]
[1733356810731,70.01520271,229.63,229.52,4.362]
[1733356811244,68.36060271,229.63,229.56,20.0]
[1733356811435,0.5133693,229.7,229.57,4.362]
[1733356811630,0.5133693,229.7,229.57,10.56885781]
[1733356812348,0.5133693,229.7,229.58,0.86855176]
[1733356812878,0.5133693,229.7,229.61,4.362]
[1733356813040,0.5133693,229.7,229.62,0.86848976]
[1733356814439,0.5133693,229.7,229.63,0.86852396]
[1733356814645,0.5133693,229.7,229.61,4.362]
[1733356814828,0.5133693,229.7,229.62,0.86851922]
[1733356815743,0.5133693,229.7,229.61,4.362]
[1733356816150,0.5133693,229.7,229.59,20.0]
[1733356816450,0.5133693,229.7,229.59,0.86867332]
[1733356816841,0.5133693,229.7,229.58,0.86872729]
[1733356817049,0.5133693,229.7,229.55,0.86878693]
[1733356817347,0.5133693,229.7,229.52,5.23082327]
[1733356818137,20.5133693,229.7,229.52,11.3875775]
[1733356818661,20.5133693,229.7,229.53,6.15675423]
[1733356818947,20.5133693,229.7,229.54,0.86886455]
[1733356819343,20.0,229.66,229.53,10.51875423]
[1733356819558,20.0,229.66,229.53,4.362]
[1733356821146,20.0,229.66,229.48,5.23087978]
[1733356821344,20.0,229.66,229.48,17.21792516]
[1733356821544,20.0,229.66,229.5,4.362]
[1733356821746,20.0,229.66,229.51,0.86896059]
[1733356823756,20.0,229.66,229.52,0.86899784]
[1733356823948,20.0,229.66,229.5,0.86899932]
[1733356825063,20.0,229.66,229.52,4.362]
[1733356825239,20.0,229.66,229.53,0.86874889]
[1733356826241,20.0,229.66,229.49,0.86894071]
[1733356827455,20.0,229.66,229.48,4.362]
[1733356827965,5.0,229.65,229.46,0.86900354]
[1733356828264,5.0,229.62,229.42,0.86921931]
[1733356828636,25.0,229.64,229.42,0.86921931]
[1733356828839,7.7888,229.69,229.42,0.86921931]
[1733356828840,20.0,229.66,229.42,0.86921931]
[1733356829033,7.7888,229.69,229.43,20.39690132]
[1733356829247,7.7888,229.69,229.45,0.12549]
[1733356829562,7.7888,229.69,229.48,20.0]
[1733356829743,7.7888,229.69,229.49,0.86887879]
[1733356829946,7.7888,229.69,229.5,14.20259115]
[1733356830157,1.5193,229.69,229.51,0.8688021]
[1733356830335,1.5193,229.69,229.52,6.17219115]
[1733356830547,1.5193,229.69,229.53,0.86874539]
[1733356831262,1.5193,229.69,229.53,7.04093654]
[1733356831466,1.5193,229.69,229.53,0.86874539]
[1733356831639,1.5193,229.69,229.54,0.86874923]
[1733356831839,1.5193,229.69,229.51,0.86873425]
[1733356832268,1.5193,229.69,229.52,0.12549]
[1733356832447,1.5193,229.69,229.53,0.86886498]
[1733356832648,20.0,229.68,229.51,0.86893867]
[1733356834845,1.5193,229.69,229.52,0.12549]
[1733356835054,1.5193,229.69,229.53,0.86879728]
[1733356835567,1.5193,229.69,229.53,7.04098843]
[1733356836450,1.5193,229.69,229.53,0.86879728]
[1733356836654,1.5193,229.69,229.54,0.86882698]
[1733356837556,1.5193,229.69,229.55,0.86883243]
[1733356837769,1.5193,229.69,229.53,4.362]
[1733356837982,1.5193,229.69,229.54,0.86879375]
[1733356839750,0.5133693,229.7,229.56,1.5424]
[1733356840058,0.5133693,229.7,229.57,0.86868976]
[1733356845271,0.5133693,229.7,229.58,6.0181]
[1733356845474,0.5133693,229.7,229.59,0.86863494]
[1733356847162,0.5133693,229.7,229.58,6.0181]
[1733356847777,0.5133693,229.7,229.56,1.5424]
[1733356847947,25.5133693,229.7,229.53,6.4483]
[1733356848148,20.0,229.66,229.53,6.4483]
[1733356849476,20.0,229.66,229.51,1.6457]
[1733356849653,0.18992061,229.54,229.51,1.6457]
[1733356854173,0.18992061,229.54,229.45,0.86915814]
[1733356854382,0.18992061,229.54,229.44,2.43246868]
[1733356856355,20.0,229.53,229.44,2.43246868]
[1733356859276,0.18992061,229.54,229.44,2.43246868]
[1733356859652,0.18992061,229.54,229.45,0.12549]
[1733356859853,0.18992061,229.54,229.49,0.12549]
[1733356860054,0.18992061,229.54,229.51,0.12549]
[1733356860377,0.18992061,229.54,229.51,0.86879424]
[1733356861185,0.18992061,229.54,229.49,0.86900469]
[1733356862752,0.18992061,229.54,229.5,0.12549]
[1733356862951,0.18992061,229.54,229.52,0.12549]
[1733356863176,0.18992061,229.54,229.53,0.99426554]
[1733356868488,0.5133693,229.7,229.58,136.11007939]
[1733356868666,0.5133693,229.7,229.59,0.86867125]
[1733356870468,0.5133693,229.7,229.58,1.6398]
[1733356870676,0.5133693,229.7,229.59,0.86879046]
[1733356870872,0.5133693,229.7,229.59,6.66381742]
[1733356871071,0.5133693,229.7,229.6,0.12549]
[1733356871278,0.5133693,229.7,229.62,0.12549]
[1733356871475,0.5133693,229.7,229.63,7.08629728]
[1733356871982,0.5133693,229.7,229.63,6.47138362]
[1733356872189,0.5133693,229.7,229.6,23.776884]
[1733356872391,0.5133693,229.7,229.62,23.776884]
[1733356872691,0.5133693,229.7,229.64,23.776884]
[1733356872996,0.5133693,229.7,229.59,23.776884]
[1733356873184,0.5133693,229.7,229.61,23.776884]
[1733356873383,0.5133693,229.7,229.58,1.6398]
[1733356873783,0.5133693,229.7,229.58,7.345244]
[1733356873965,0.5133693,229.7,229.59,0.86877894]
[1733356874167,0.5133693,229.7,229.59,16.44248801]
[1733356874368,0.5133693,229.7,229.6,0.12549]
[1733356874692,0.5133693,229.7,229.62,23.902374]
[1733356874996,0.5133693,229.7,229.64,23.902374]
[1733356875168,0.5133693,229.7,229.66,23.902374]
[1733356875373,0.5133693,229.7,229.68,25.426774]
[1733356875569,0.5133693,229.7,229.69,41.0326998]
[1733356875993,0.5133693,229.7,229.69,47.6656998]
[1733356876200,12.6193,229.92,229.76,128.8]
[1733356876370,12.6193,229.92,229.77,17.97367963]
[1733356876568,7.6193,229.92,229.77,17.97367963]
[1733356876881,1.5546,229.92,229.77,17.97367963]
[1733356877620,0.5133693,229.93,229.78,0.12549]
[1733356877932,7.6193,229.97,229.69,41.293684]
[1733356877933,1.5546,229.97,229.82,0.12549]
[1733356878099,1.5546,230.03,229.84,0.12549]
[1733356878391,1.5546,230.03,229.85,35.08465531]
[1733356878600,1.5546,230.03,229.87,23.776884]
[1733356878893,1.5546,230.03,229.89,23.776884]
[1733356879766,21.5546,230.03,229.84,0.8675661]
[1733356879972,21.5546,230.03,229.85,23.776884]
[1733356880192,26.5546,230.03,229.85,23.776884]
[1733356880890,26.4915,229.99,229.84,0.8675661]
[1733356881096,26.4915,229.99,229.83,23.776884]
[1733356881270,26.4915,229.99,229.84,0.86776987]
[1733356881799,26.4915,229.99,229.85,23.776884]
[1733356881980,26.4915,229.99,229.86,0.86765319]
[1733356882293,26.4915,229.99,229.84,23.776884]
[1733356882703,26.4915,229.99,229.82,0.86780367]
[1733356882992,20.0,229.95,229.78,0.86779156]
[1733356883375,20.0,229.95,229.76,0.86797891]
[1733356883569,20.0,229.95,229.76,6.70129377]
[1733356883807,20.0,229.91,229.76,5.83331486]
[1733356883973,23.776884,229.94,229.76,5.83331486]
[1733356884170,20.0,229.88,229.7,0.86799872]
[1733356884390,6.3702,229.86,229.7,0.86799872]
[1733356884588,20.0,229.83,229.7,0.86799872]
[1733356885205,20.0,229.83,229.71,11.2194625]
[1733356885390,20.0,229.83,229.7,0.86799872]
[1733356885589,20.0,229.83,229.7,5.78603436]
[1733356886109,20.0,229.83,229.71,0.86833895]
[1733356886400,20.0,229.83,229.7,5.43342814]
[1733356886601,20.0,229.83,229.72,11.2194625]
[1733356886803,20.0,229.83,229.74,23.776884]
[1733356887686,20.0,229.83,229.76,23.776884]
[1733356887892,20.0,229.83,229.76,29.56291836]
[1733356888187,20.0,229.83,229.7,23.776884]
[1733356888385,20.0,229.83,229.72,23.776884]
[1733356888586,20.0,229.83,229.74,23.776884]
[1733356888792,20.0,229.83,229.76,23.776884]
[1733356888987,20.0,229.83,229.72,0.868101]
[1733356889196,20.0,229.83,229.73,23.776884]
[1733356889396,20.0,229.83,229.74,0.86813671]
[1733356889604,1.5781,229.9,229.74,0.86813671]
[1733356889605,1.5781,229.9,229.75,23.776884]
[1733356889907,1.5781,229.9,229.77,23.776884]
[1733356890085,1.5781,229.9,229.79,23.776884]
[1733356890408,1.5781,229.9,229.81,23.776884]
[1733356890699,1.5781,229.9,229.83,23.776884]
[1733356890903,1.5781,229.9,229.8,11.6356964]
[1733356891081,1.5781,229.9,229.78,23.776884]
[1733356891281,1.5781,229.9,229.8,23.776884]
[1733356891689,20.0,229.88,229.8,23.776884]
[1733356892003,20.0,229.88,229.81,0.86803638]
[1733356892188,20.0,229.88,229.82,23.776884]
[1733356892404,20.0,229.93,229.83,0.86779371]
[1733356892583,20.0,229.93,229.84,23.776884]
[1733356893210,20.0,229.93,229.86,23.776884]
[1733356893418,20.0,229.93,229.85,6.04798436]
[1733356894203,20.0,229.93,229.83,5.61062344]
[1733356894204,20.0,229.93,229.84,23.776884]
[1733356894405,20.0,229.93,229.81,0.86780935]
[1733356895084,20.0,229.93,229.81,23.776884]
[1733356895279,20.0,229.93,229.79,6.04798436]
[1733356895492,20.0,229.93,229.76,0.86790201]
[1733356895704,20.0,229.93,229.76,6.91588637]
[1733356896001,20.0,229.93,229.77,6.04798436]
[1733356896509,20.0,229.93,229.78,0.86802984]
[1733356896732,20.0,229.93,229.78,6.9160142]
[1733356897028,20.0,229.93,229.8,23.776884]
[1733356897228,20.0,229.93,229.8,24.64477031]
[1733356898008,20.0,229.93,229.79,6.04798436]
[1733356898230,20.0,229.93,229.75,23.776884]
[1733356898429,20.0,229.93,229.76,0.86810043]
[1733356899144,25.0,229.91,229.74,0.86808733]
[1733356899305,20.0,229.84,229.71,0.86808733]
[1733356899712,20.0,229.84,229.72,11.16851555]
[1733356899908,20.0,229.84,229.73,0.86810082]
[1733356900116,20.0,229.84,229.74,5.45641204]
[1733356900323,20.0,229.84,229.75,0.86802713]
[1733356900528,1.6653,229.9,229.76,34.94539955]
[1733356900706,1.6653,229.9,229.78,23.776884]
[1733356900907,1.6653,229.9,229.8,23.776884]
[1733356901215,1.6653,229.9,229.81,6.81827773]
[1733356901933,6.4961,229.93,229.82,29.48607382]
[1733356902119,6.4961,229.93,229.84,23.776884]
[1733356902321,6.4961,229.93,229.84,35.43651066]
[1733356902510,20.0,229.9,229.85,12.5273828]
[1733356902828,20.0,229.9,229.85,5.95043684]
[1733356903208,20.0,229.9,229.83,23.776884]
[1733356903435,20.0,229.9,229.84,0.86776497]
[1733356904132,20.0,229.9,229.84,6.81820181]
[1733356904442,20.0,229.9,229.78,0.86780173]
[1733356904738,20.0,229.9,229.72,0.86801105]
[1733356905126,20.0,229.9,229.72,6.03122567]
[1733356905320,20.0,229.89,229.73,5.16321462]
[1733356905632,20.0,229.89,229.74,0.86799142]
[1733356905803,20.0,229.9,229.75,5.63475351]
[1733356906133,20.0,229.9,229.77,23.776884]
[1733356906311,20.0,229.9,229.78,0.86792637]
[1733356906515,20.0,229.9,229.79,23.776884]
[1733356906832,20.0,229.9,229.78,0.86793617]
[1733356907612,20.0,229.9,229.73,0.86803597]
[1733356907818,21.6584,229.89,229.73,0.86803597]
[1733356908018,21.6584,229.89,229.67,0.86819883]
[1733356908204,21.6584,229.89,229.67,6.43289209]
[1733356908405,1.6584,229.89,229.68,5.69018326]
[1733356908609,1.6584,229.89,229.7,0.12549]
[1733356908805,1.6584,229.89,229.71,6.67824859]
[1733356909109,1.48836932,229.89,229.71,6.67824859]
[1733356909424,1.48836932,229.89,229.72,23.776884]
[1733356909737,1.48836932,229.89,229.75,0.12549]
[1733356909922,1.48836932,229.89,229.76,29.58713281]
[1733356910113,1.48836932,229.89,229.78,23.776884]
[1733356910920,20.0,229.88,229.73,23.776884]
[1733356911129,20.0,229.88,229.74,0.86815312]
[1733356911439,20.0,229.88,229.75,23.776884]
[1733356911612,20.0,229.88,229.76,0.86810944]
[1733356911814,1.48836932,229.89,229.77,23.776884]
[1733356912226,1.48836932,229.89,229.74,5.48755992]
[1733356912439,1.48836932,229.89,229.75,0.86814281]
[1733356912639,1.48836932,229.89,229.7,23.776884]
[1733356912838,1.48836932,229.89,229.72,23.776884]
[1733356913011,1.48836932,229.89,229.74,23.776884]
[1733356913341,1.48836932,229.89,229.76,23.776884]
[1733356913519,1.48836932,229.89,229.78,23.776884]
[1733356913716,1.48836932,229.89,229.8,23.776884]
[1733356913914,6.4961,229.93,229.82,23.776884]
[1733356914111,6.4961,229.93,229.84,23.776884]
[1733356914311,6.4961,229.93,229.85,5.95700437]
[1733356914623,1.5082,229.95,229.86,24.64458688]
[1733356914934,1.5082,229.95,229.88,23.776884]
[1733356915248,1.5082,229.95,229.89,5.95259881]
[1733356915483,1.5082,229.95,229.9,23.776884]
[1733356915616,1.5082,229.95,229.9,24.64440015]
[1733356917616,1.5082,229.95,229.8,0.86755718]
[1733356917819,1.5082,229.95,229.81,23.776884]
[1733356918016,1.5082,229.95,229.82,0.86769637]
[1733356918224,1.5082,229.95,229.79,0.12549]
[1733356918429,1.5082,229.95,229.8,0.86768315]
[1733356919245,20.0,229.94,229.73,0.86790025]
[1733356919451,20.0,229.9,229.73,0.86790025]
[1733356920329,1.5958,229.89,229.74,4.3733391]
[1733356920545,1.5958,229.89,229.75,0.86806281]
[1733356920749,6.0527,229.88,229.69,0.86816095]
[1733356921048,20.0,229.85,229.69,0.86816095]
[1733356921642,20.0,229.85,229.69,4.3733391]
[1733356921859,20.0,229.85,229.7,0.8681622]
[1733356922056,1.571,229.84,229.7,0.8681622]
[1733356922227,1.571,229.84,229.63,0.86829734]
[1733356922543,20.0,229.8,229.63,0.86829734]
[1733356922747,21.571,229.79,229.56,0.86853619]
[1733356922929,6.4157,229.76,229.56,0.86853619]
[1733356923122,20.0,229.73,229.56,0.86853619]
[1733356923547,20.0,229.73,229.51,0.12549]
[1733356923728,20.0,229.73,229.52,0.86867527]
[1733356924154,20.0,229.73,229.53,4.3733391]
[1733356924329,21.6219,229.72,229.54,0.86877733]
[1733356925230,21.6219,229.72,229.52,4.37640981]
[1733356925231,21.6219,229.72,229.55,0.86879474]
[1733356925443,21.6219,229.72,229.5,0.86878089]
[1733356926050,21.6219,229.72,229.51,23.776884]
[1733356926232,21.6219,229.72,229.53,23.776884]
[1733356926547,1.6219,229.72,229.55,23.776884]
[1733356926748,1.6219,229.72,229.57,23.776884]
[1733356926955,1.6219,229.72,229.58,0.86871417]
[1733356927139,1.6219,229.72,229.57,23.776884]
[1733356927140,1.6219,229.72,229.57,0.86870351]
[1733356927340,1.6219,229.72,229.53,4.37640981]
[1733356927341,20.0,229.71,229.53,4.37640981]
[1733356927653,20.0,229.67,229.54,0.86892414]
[1733356927974,20.0,229.67,229.52,0.86893275]
[1733356928123,20.0,229.67,229.44,0.8689567]
[1733356928328,20.0,229.61,229.44,0.8689567]
[1733356928569,25.0,229.61,229.37,0.86921664]
[1733356928721,20.0,229.56,229.37,0.86921664]
[1733356929224,20.0,229.56,229.37,9.15918033]
[1733356929425,20.0,229.56,229.37,5.24562645]
[1733356929650,20.0,229.56,229.37,0.86921664]
[1733356931135,20.0,229.56,229.38,23.776884]
[1733356931330,20.0,229.56,229.36,0.5133693]
[1733356931331,20.0,229.56,229.39,0.86929118]
[1733356931641,20.0,229.56,229.36,0.5133693]
[1733356931845,8.1104,229.59,229.37,5.99009206]
[1733356932034,8.1104,229.59,229.37,14.88603504]
[1733356932234,8.1104,229.59,229.4,0.12549]
[1733356932472,8.1104,229.59,229.4,0.99454848]
[1733356932755,8.1104,229.59,229.42,0.12549]
[1733356932928,8.1104,229.59,229.44,0.12549]
[1733356933128,20.0,229.56,229.45,23.776884]
[1733356933343,20.0,229.56,229.47,23.776884]
[1733356933758,20.0,229.56,229.49,23.776884]
[1733356933925,20.0,229.56,229.39,23.776884]
[1733356934125,20.0,229.56,229.41,23.776884]
[1733356934345,20.0,229.56,229.42,0.86926192]
[1733356934648,20.0,229.56,229.37,0.86937173]
[1733356935443,20.0,229.56,229.29,0.86946894]
[1733356935644,20.0,229.56,229.31,20.0]
[1733356935869,20.0,229.56,229.39,0.12549]
[1733356936053,20.0,229.56,229.39,0.99464281]
[1733356936369,20.0,229.56,229.41,0.12549]
[1733356936575,8.1104,229.59,229.43,0.12549]
[1733356936753,8.1104,229.59,229.45,0.12549]
[1733356936967,8.1104,229.59,229.46,23.776884]
[1733356937265,8.1104,229.59,229.48,23.776884]
[1733356937471,8.1104,229.59,229.5,23.776884]
[1733356937655,7.9859,229.72,229.52,23.776884]
[1733356937853,7.9859,229.72,229.54,23.776884]
[1733356938174,7.9859,229.72,229.56,23.776884]
[1733356938379,7.9859,229.72,229.57,0.86869246]
[1733356938681,7.9859,229.72,229.58,23.776884]
[1733356938854,7.9859,229.72,229.6,23.776884]
[1733356939060,7.9859,229.86,229.62,23.776884]
[1733356939251,7.9859,229.86,229.66,136.3]
[1733356939449,7.9859,229.86,229.67,24.64516793]
[1733356939659,7.9859,229.86,229.67,29.59141108]
[1733356940066,7.9859,229.86,229.67,24.64516793]
[1733356940269,7.9859,229.86,229.67,29.59141108]
[1733356940462,7.9859,229.86,229.69,23.776884]
[1733356940661,7.9859,229.86,229.71,23.776884]
[1733356940856,7.9859,229.86,229.73,23.776884]
[1733356941078,7.9859,229.86,229.75,23.776884]
[1733356941387,7.9859,229.86,229.77,23.776884]
[1733356941549,7.9859,229.86,229.79,23.776884]
[1733356942366,7.9859,229.86,229.81,23.776884]
[1733356943065,7.9859,229.86,229.71,0.86786231]
[1733356943261,7.9859,229.86,229.72,23.776884]
[1733356943462,7.9859,229.86,229.74,23.776884]
[1733356943767,7.9859,229.86,229.76,23.776884]
[1733356943977,20.0,229.83,229.76,23.776884]
[1733356944282,20.0,229.83,229.74,23.776884]
[1733356945876,20.0,229.83,229.76,23.776884]
[1733356946183,20.0,229.83,229.69,0.86805497]
[1733356946360,20.0,229.83,229.62,0.86831442]
[1733356946559,20.0,229.82,229.62,0.86831442]
[1733356946760,20.0,229.82,229.58,5.81475532]
[1733356946967,23.776884,229.81,229.58,5.81475532]
[1733356947296,20.0,229.74,229.58,5.81475532]
[1733356947580,1.6534,229.73,229.58,5.81475532]
[1733356947960,1.6534,229.73,229.58,15.03592941]
[1733356948170,1.6534,229.73,229.59,5.30762021]
[1733356948358,1.6534,229.73,229.6,5.8146463]
[1733356948557,6.6026,229.77,229.64,23.776884]
[1733356948759,6.6026,229.77,229.66,23.776884]
[1733356948968,6.6026,229.77,229.68,23.776884]
[1733356949201,6.6026,229.77,229.7,23.776884]
[1733356949371,6.6026,229.77,229.72,23.776884]
[1733356950867,6.6026,229.77,229.58,0.86832815]
[1733356951189,20.0,229.74,229.58,0.86832815]
[1733356951371,20.0,229.74,229.51,17.2232]
[1733356951372,20.0,229.74,229.53,0.86862065]
[1733356951575,1.6445,229.73,229.53,0.86862065]
[1733356952169,20.0,229.72,229.5,0.86875896]
[1733356952477,26.3453,229.72,229.5,0.86875896]
[1733356952872,20.0,229.69,229.5,0.86875896]
[1733356953073,20.0,229.69,229.47,0.86900956]
[1733356953273,20.0,229.69,229.47,5.01288132]
[1733356953588,20.0,229.69,229.48,0.86891066]
[1733356954076,20.0,229.68,229.48,0.86891066]
[1733356954394,20.0,229.68,229.49,0.86903401]
[1733356954594,20.0,229.68,229.44,0.86895411]
[1733356954786,20.0,229.69,229.44,0.86895411]
[1733356955093,20.0,229.69,229.44,9.8323508]
[1733356955267,20.0,229.68,229.45,8.96339669]
[1733356955468,20.0,229.68,229.46,0.86904672]
[1733356956491,20.0,229.68,229.47,23.776884]
[1733356956700,25.0,229.68,229.48,0.86910229]
[1733356957002,5.0,229.69,229.41,0.86911405]
[1733356957003,23.776884,229.65,229.41,0.86911405]
[1733356957296,20.0,229.58,229.41,0.86911405]
[1733356957494,20.0,229.58,229.37,0.86938124]
[1733356957891,20.0,229.53,229.36,0.5133693]
[1733356958205,1.5079,229.52,229.36,0.5133693]
[1733356959369,20.0,229.48,229.36,0.5133693]
[1733356963007,20.0,229.47,229.36,0.5133693]
[1733356963614,20.0,229.48,229.36,0.5133693]
[1733356964373,21.5711,229.47,229.36,0.5133693]
[1733356964594,20.0,229.43,229.36,0.5133693]
[1733356966584,6.2037,229.46,229.36,0.5133693]
[1733356968987,20.0,229.43,229.36,0.5133693]
[1733356970887,23.776884,229.42,229.36,0.5133693]
[1733356971406,20.0,229.39,229.36,0.5133693]
[1733356972311,20.0,229.43,229.36,0.5133693]
[1733356973317,1.5879,229.38,229.36,0.5133693]
[1733356974385,20.0,229.34,229.19,0.87011912]
[1733356975410,20.0,229.34,229.16,20.0]
[1733356975623,20.0,229.34,229.16,0.87021288]
[1733356975791,20.0,229.3,229.14,1.38358218]
[1733356976213,5.0,229.35,229.14,1.38358218]
[1733356976520,20.0,229.3,229.14,1.38358218]
[1733356976819,20.0,229.26,229.14,0.5133693]
[1733356980400,20.0,229.22,229.14,0.5133693]
[1733356981183,8.1675,229.29,229.14,0.5133693]
[1733356981184,20.0,229.26,229.14,0.5133693]
[1733356981383,23.776884,229.25,229.14,0.5133693]
[1733356981621,20.0,229.22,229.14,0.5133693]
[1733356982213,20.0,229.26,229.14,0.5133693]
[1733356983508,8.1675,229.29,229.14,0.5133693]
[1733356984013,10.0,229.28,229.14,0.5133693]
[1733356984731,23.776884,229.27,229.14,0.5133693]
[1733356985012,20.0,229.24,229.14,0.5133693]
[1733356985516,20.0,229.26,229.14,0.5133693]
[1733356986893,20.0,229.22,229.14,0.5133693]
[1733356988225,20.0,229.15,229.14,0.5133693]
[1733356989620,20.0,229.19,229.14,0.5133693]
[1733356989791,8.1136,229.22,229.14,0.5133693]
[1733356989998,1.5563,229.22,229.14,0.5133693]
[1733356990209,7.6978,229.27,229.14,0.5133693]
[1733356990799,7.6978,229.33,229.14,25.16075314]
[1733356992028,12.9767,229.39,229.14,25.16075314]
[1733356992232,7.9767,229.39,229.19,6.5514]
[1733356992417,7.9767,229.39,229.21,23.776884]
[1733356992720,7.9767,229.39,229.23,23.776884]
[1733356993796,20.0,229.36,229.25,23.776884]
[1733356993994,1.6117,229.44,229.27,23.776884]
[1733356994197,1.6117,229.44,229.29,23.776884]
[1733356995323,20.0,229.42,229.29,23.776884]
[1733356996031,20.0,229.42,229.22,0.86994115]
[1733356996209,23.776884,229.41,229.23,23.776884]
[1733356996415,20.0,229.38,229.19,7.42150826]
[1733356997146,20.0,229.38,229.19,6.5514]
[1733356997639,20.0,229.38,229.2,23.776884]
[1733356998058,23.776884,229.37,229.19,6.5514]
[1733356998234,20.0,229.34,229.19,6.5514]
[1733356998534,20.0,229.34,229.2,0.87032045]
[1733356998837,20.0,229.38,229.2,0.87032045]
[1733356999214,20.0,229.38,229.21,23.776884]
[1733356999517,20.0,229.39,229.21,23.776884]
[1733356999835,8.60020191,229.43,229.24,0.02395936]
[1733357000136,1.6117,229.44,229.24,0.02395936]
[1733357000821,1.6117,229.44,229.26,23.776884]
[1733357001021,20.0,229.42,229.26,23.776884]
[1733357001439,10.13692043,229.44,229.26,23.776884]
[1733357001440,20.0,229.41,229.26,23.776884]
[1733357001807,10.13692043,229.44,229.26,23.776884]
[1733357002210,6.1289,229.45,229.27,0.8699359]
[1733357002523,6.1289,229.45,229.28,23.776884]
[1733357002729,6.1289,229.45,229.26,23.776884]
[1733357003120,6.1289,229.45,229.24,0.02395936]
[1733357003121,5.0,229.43,229.24,0.02395936]
[1733357003314,5.0,229.41,229.24,0.02395936]
[1733357003515,20.0,229.35,229.24,0.02395936]
[1733357003943,23.776884,229.34,229.24,0.02395936]
[1733357004145,20.0,229.31,229.24,0.02395936]
[1733357004458,20.0,229.26,229.24,0.02395936]
[1733357004916,20.0,229.3,229.24,0.02395936]
[1733357008060,6.6402,229.39,229.24,0.02395936]
[1733357009364,11.6402,229.39,229.24,0.02395936]
[1733357009861,23.776884,229.38,229.24,0.02395936]
[1733357010057,20.0,229.35,229.24,0.02395936]
[1733357012443,6.6402,229.39,229.24,0.02395936]
[1733357012642,23.776884,229.38,229.24,0.02395936]
[1733357013751,20.0,229.35,229.24,0.02395936]
[1733357014381,20.0,229.35,229.34,0.02395936]
[1733357014939,43.776884,229.35,229.34,0.02395936]
[1733357015466,20.0,229.35,229.34,0.02395936]
[1733357017657,8.81731073,229.43,229.34,0.02395936]
[1733357017867,1.5552,229.46,229.34,0.02395936]
[1733357019352,20.0,229.4,229.34,0.02395936]
[1733357019968,20.0,229.36,229.34,0.02395936]
[1733357020277,23.776884,229.35,229.34,0.02395936]
[1733357021058,25.282984,229.35,229.34,0.02395936]
[1733357021391,30.282984,229.35,229.34,0.02395936]
[1733357021683,20.0,229.28,229.14,0.5133693]
[1733357021885,20.0,229.24,229.14,0.5133693]
[1733357023853,20.0,229.33,229.14,0.5133693]
[1733357024082,20.0,229.3,229.14,0.5133693]
[1733357024373,20.0,229.26,229.14,0.5133693]
[1733357024768,20.0,229.29,229.14,0.5133693]
[1733357024971,20.0,229.31,229.14,0.5133693]
[1733357025174,20.0,229.27,229.14,0.5133693]
[1733357027751,20.0,229.27,229.14,24.2902533]
[1733357027946,20.0,229.32,229.15,0.87042759]
[1733357028282,6.3066,229.38,229.16,23.776884]
[1733357028577,6.3066,229.38,229.18,23.776884]